fUSD/lending_fUSD_20241224
["ID","MTS","AMOUNT","RATE_DAILY","PERIOD"]
[346482750,1735001444941,-776.99,0.00013698,2]
[346482751,1735001444951,-500.0,0.00013698,2]
[346482752,1735001444961,-500.0,0.00013698,2]
[346482753,1735001444970,-655.76,0.00013698,2]
[346482754,1735001444979,-500.0,0.00013698,2]
[346482755,1735001444989,-151.0,0.00013698,2]
[346482756,1735001444997,-645.65,0.00013698,2]
[346482757,1735001445007,-500.0,0.00013698,2]
[346482758,1735001445016,-500.0,0.00013698,2]
[346482759,1735001445025,-151.0,0.00013698,2]
[346482760,1735001445035,-500.0,0.00013698,2]
[346482761,1735001445044,-591.12,0.00013698,2]
[346482762,1735001445053,-776.16,0.00013698,2]
[346482763,1735001445062,-500.0,0.00013698,2]
[346482764,1735001445071,-500.0,0.00013698,2]
[346482765,1735001445081,-901.81,0.00013698,2]
[346482766,1735001445090,-500.0,0.00013698,2]
[346482767,1735001445099,-500.0,0.00013698,2]
[346482768,1735001445108,-513.43,0.00013698,2]
[346482769,1735001445118,-500.0,0.00013698,2]
[346482770,1735001445127,-500.0,0.00013698,2]
[346482771,1735001445137,-768.82,0.00013698,2]
[346482772,1735001445147,-632.86,0.00013698,2]
[346482773,1735001445156,-735.85,0.00013698,2]
[346482774,1735001445166,-500.0,0.00013698,2]
[346482775,1735001445175,-500.0,0.00013698,2]
[346482776,1735001445185,-699.69,0.00013698,2]
[346482777,1735001445202,-932.6,0.00013698,2]
[346482778,1735001445221,-500.0,0.00013698,2]
[346482779,1735001445230,-500.0,0.00013698,2]
[346482781,1735001445240,-712.77,0.00013698,2]
[346482783,1735001445249,-500.0,0.00013698,2]
[346482784,1735001445258,-155.367327,0.00013698,2]
[346482785,1735001445268,-500.0,0.00013698,2]
[346482786,1735001445277,-1419.607824,0.00013698,2]
[346482787,1735001445287,-1219.72,0.00013698,2]
[346482788,1735001445297,-1026.21,0.00013698,2]
[346482790,1735001445306,-653.71,0.00013698,2]
[346482792,1735001445315,-1525.033722,0.00013698,2]
[346482794,1735001445324,-500.0,0.00013698,2]
[346482796,1735001445333,-500.0,0.00013698,2]
[346482798,1735001445342,-590.03,0.00013698,2]
[346482800,1735001445351,-500.0,0.00013698,2]
[346482802,1735001445360,-500.0,0.00013698,2]
[346482803,1735001445369,-853.73,0.00013698,2]
[346482805,1735001445378,-500.0,0.00013698,2]
[346482806,1735001445387,-566.27,0.00013698,2]
[346482807,1735001445397,-500.0,0.00013698,2]
[346482808,1735001445406,-557.04,0.00013698,2]
[346482809,1735001445416,-701.88,0.00013698,2]
[346482810,1735001445426,-500.0,0.00013698,2]
[346482811,1735001445435,-1107.21,0.00013698,2]
[346482812,1735001445444,-1001.8,0.00013698,2]
[346482813,1735001445455,-1278.85,0.00013698,2]
[346482814,1735001445465,-566.79,0.00013698,2]
[346482815,1735001445475,-500.0,0.00013698,2]
[346482816,1735001445485,-884.28,0.00013698,2]
[346482817,1735001445494,-1182.67,0.00013698,2]
[346482818,1735001445504,-500.0,0.00013698,2]
[346482819,1735001445513,-1306.63,0.00013698,2]
[346482820,1735001445523,-634.38,0.00013698,2]
[346482821,1735001445535,-761.49,0.00013698,2]
[346482822,1735001445545,-725.01,0.00013698,2]
[346482823,1735001445555,-559.81,0.00013698,2]
[346482824,1735001445564,-643.33,0.00013698,2]
[346482825,1735001445573,-500.0,0.00013698,2]
[346482826,1735001445583,-501.05478432,0.00013698,2]
[346482827,1735001445597,-500.0,0.00013698,2]
[346482828,1735001445606,-500.0,0.00013698,2]
[346482829,1735001445615,-985.98,0.00013698,2]
[346482830,1735001445624,-1064.65,0.00013698,2]
[346482831,1735001445634,-500.0,0.00013698,2]
[346482832,1735001445643,-500.0,0.00013698,2]
[346482833,1735001445652,-500.0,0.00013698,2]
[346482834,1735001445662,-558.35,0.00013698,2]
[346482835,1735001445673,-684.68,0.00013698,2]
[346482836,1735001445682,-500.0,0.00013698,2]
[346482837,1735001445691,-500.0,0.00013698,2]
[346482838,1735001445702,-664.58,0.00013698,2]
[346482839,1735001445712,-500.0,0.00013698,2]
[346482840,1735001445722,-637.3,0.00013698,2]
[346482841,1735001445731,-1089.51,0.00013698,2]
[346482842,1735001445741,-621.26,0.00013698,2]
[346482843,1735001445751,-500.0,0.00013698,2]
[346482844,1735001445761,-500.0,0.00013698,2]
[346482845,1735001445770,-500.0,0.00013698,2]
[346482846,1735001445779,-1029.62,0.00013698,2]
[346482847,1735001445789,-500.0,0.00013698,2]
[346482848,1735001445798,-1615.41,0.00013698,2]
[346482849,1735001445807,-500.0,0.00013698,2]
[346482850,1735001445817,-606.78,0.00013698,2]
[346482851,1735001445826,-500.0,0.00013698,2]
[346482852,1735001445835,-500.0,0.00013698,2]
[346482853,1735001445845,-826.06,0.00013698,2]
[346482854,1735001445853,-811.14,0.00013698,2]
[346482855,1735001445862,-500.45,0.00013698,2]
[346482856,1735001445871,-802.28,0.00013698,2]
[346482857,1735001445880,-794.95,0.00013698,2]
[346482858,1735001445890,-1577.36,0.00013698,2]
[346482859,1735001445899,-500.0,0.00013698,2]
[346482860,1735001445908,-792.21,0.00013698,2]
[346482861,1735001445917,-905.64,0.00013698,2]
[346482862,1735001445926,-925.38,0.00013698,2]
[346482863,1735001445935,-697.75,0.00013698,2]
[346482864,1735001445945,-500.0,0.00013698,2]
[346482865,1735001445955,-500.0,0.00013698,2]
[346482866,1735001445965,-1052.28,0.00013698,2]
[346482867,1735001445974,-500.0,0.00013698,2]
[346482868,1735001445983,-500.0,0.00013698,2]
[346482869,1735001445992,-948.57,0.00013698,2]
[346482870,1735001446002,-1456.89,0.00013698,2]
[346482871,1735001446011,-500.0,0.00013698,2]
[346482872,1735001446020,-693.29,0.00013698,2]
[346482873,1735001446029,-872.79,0.00013698,2]
[346482874,1735001446039,-500.0,0.00013698,2]
[346482875,1735001446048,-500.0,0.00013698,2]
[346482876,1735001446057,-500.0,0.00013698,2]
[346482877,1735001446066,-838.33,0.00013698,2]
[346482878,1735001446076,-500.0,0.00013698,2]
[346482879,1735001446085,-701.9,0.00013698,2]
[346482880,1735001446095,-1292.24,0.00013698,2]
[346482881,1735001446104,-500.0,0.00013698,2]
[346482882,1735001446113,-500.0,0.00013698,2]
[346482883,1735001446123,-500.0,0.00013698,2]
[346482884,1735001446132,-604.01,0.00013698,2]
[346482885,1735001446142,-500.0,0.00013698,2]
[346482886,1735001446151,-578.24,0.00013698,2]
[346482887,1735001446161,-527.51,0.00013698,2]
[346482888,1735001446171,-500.0,0.00013698,2]
[346482889,1735001446180,-500.0,0.00013698,2]
[346482890,1735001446190,-500.0,0.00013698,2]
[346482891,1735001446199,-500.0,0.00013698,2]
[346482892,1735001446211,-1592.84,0.00013698,2]
[346482893,1735001446221,-500.0,0.00013698,2]
[346482894,1735001446230,-1549.13,0.00013698,2]
[346482895,1735001446242,-593.44,0.00013698,2]
[346482896,1735001446251,-871.48,0.00013698,2]
[346482897,1735001446261,-151.0,0.00013698,2]
[346482898,1735001446270,-350.33503138,0.00013698,2]
[346482899,1735001446279,-846.37,0.00013698,2]
[346482900,1735001446289,-637.36,0.00013698,2]
[346482901,1735001446299,-500.0,0.00013698,2]
[346482902,1735001446308,-500.0,0.00013698,2]
[346482903,1735001446319,-500.0,0.00013698,2]
[346482904,1735001446329,-539.91,0.00013698,2]
[346482905,1735001446338,-1368.97,0.00013698,2]
[346482906,1735001446349,-500.0,0.00013698,2]
[346482907,1735001446358,-500.0,0.00013698,2]
[346482908,1735001446367,-1044.17,0.00013698,2]
[346482909,1735001446376,-500.0,0.00013698,2]
[346482910,1735001446386,-2336.64,0.00013698,2]
[346482911,1735001446395,-500.0,0.00013698,2]
[346482912,1735001446405,-757.78,0.00013698,2]
[346482913,1735001446414,-500.0,0.00013698,2]
[346482914,1735001446424,-500.0,0.00013698,2]
[346482915,1735001446433,-639.3,0.00013698,2]
[346482916,1735001446443,-871.36,0.00013698,2]
[346482917,1735001446453,-500.0,0.00013698,2]
[346482918,1735001446462,-636.75,0.00013698,2]
[346482919,1735001446471,-4919.07,0.00013698,2]
[346482920,1735001446480,-749.86,0.00013698,2]
[346482921,1735001446489,-706.81,0.00013698,2]
[346482922,1735001446498,-721.74,0.00013698,2]
[346482923,1735001446507,-500.0,0.00013698,2]
[346482924,1735001446516,-1410.36,0.00013698,2]
[346482925,1735001446525,-5192.86,0.00013698,2]
[346482926,1735001446535,-500.0,0.00013698,2]
[346482927,1735001446543,-500.0,0.00013698,2]
[346482928,1735001446552,-500.0,0.00013698,2]
[346482929,1735001446561,-16202.28,0.00013698,2]
[346482930,1735001446570,-500.0,0.00013698,2]
[346482931,1735001446579,-500.0,0.00013698,2]
[346482932,1735001446593,-500.0,0.00013698,2]
[346482933,1735001446601,-1761.01,0.00013698,2]
[346482934,1735001446611,-1501.35,0.00013698,2]
[346482935,1735001446619,-500.0,0.00013698,2]
[346482936,1735001446629,-700.94,0.00013698,2]
[346482937,1735001446639,-3381.94,0.00013698,2]
[346482938,1735001446648,-904.48,0.00013698,2]
[346482939,1735001446658,-500.0,0.00013698,2]
[346482940,1735001446667,-778.4,0.00013698,2]
[346482941,1735001446676,-1286.1,0.00013698,2]
[346482942,1735001446685,-815.39,0.00013698,2]
[346482943,1735001446694,-856.51,0.00013698,2]
[346482944,1735001446704,-1322.76,0.00013698,2]
[346482945,1735001446713,-500.0,0.00013698,2]
[346482946,1735001446723,-575.62,0.00013698,2]
[346482947,1735001446794,-4827.47,0.00013698,2]
[346482948,1735001446804,-4054.17,0.00013698,2]
[346482949,1735001446813,-8589.22,0.00013698,2]
[346482950,1735001446822,-500.0,0.00013698,2]
[346482951,1735001446831,-500.0,0.00013698,2]
[346482952,1735001446840,-500.0,0.00013698,2]
[346482953,1735001446849,-1300.76,0.00013698,2]
[346482954,1735001446858,-708.78,0.00013698,2]
[346482955,1735001446867,-500.0,0.00013698,2]
[346482956,1735001446876,-734.65,0.00013698,2]
[346482957,1735001446885,-1065.62,0.00013698,2]
[346482958,1735001446894,-1904.49,0.00013698,2]
[346482959,1735001446903,-861.5,0.00013698,2]
[346482960,1735001446912,-532.65,0.00013698,2]
[346482961,1735001446921,-500.0,0.00013698,2]
[346482962,1735001446930,-500.0,0.00013698,2]
[346482963,1735001446939,-1486.85,0.00013698,2]
[346482964,1735001446948,-831.71,0.00013698,2]
[346482965,1735001446958,-822.58,0.00013698,2]
[346482966,1735001446967,-603.89,0.00013698,2]
[346482967,1735001446976,-500.0,0.00013698,2]
[346482968,1735001446985,-512.2,0.00013698,2]
[346482969,1735001446995,-630.69,0.00013698,2]
[346482970,1735001447004,-2800.6,0.00013698,2]
[346482971,1735001447013,-660.15,0.00013698,2]
[346482972,1735001447022,-500.0,0.00013698,2]
[346482973,1735001447031,-1078.57,0.00013698,2]
[346482974,1735001447040,-1162.19,0.00013698,2]
[346482975,1735001447049,-500.0,0.00013698,2]
[346482976,1735001447058,-3871.01,0.00013698,2]
[346482977,1735001447067,-1360.21,0.00013698,2]
[346482978,1735001447076,-397.29285626,0.00013698,2]
[346482979,1735001447085,-697.78,0.00013698,2]
[346482980,1735001447094,-703.84,0.00013698,2]
[346482981,1735001447102,-4635.79,0.00013698,2]
[346482982,1735001447112,-1439.73,0.00013698,2]
[346482983,1735001447120,-500.0,0.00013698,2]
[346482984,1735001447130,-1123.2,0.00013698,2]
[346482985,1735001447139,-775.97,0.00013698,2]
[346482986,1735001447149,-595.75,0.00013698,2]
[346482987,1735001447159,-4877.78,0.00013698,2]
[346482988,1735001447168,-3364.15,0.00013698,2]
[346482989,1735001447177,-864.76,0.00013698,2]
[346482990,1735001447186,-1011.35,0.00013698,2]
[346482991,1735001447195,-500.0,0.00013698,2]
[346482992,1735001447206,-500.0,0.00013698,2]
[346482993,1735001447216,-1036.12,0.00013698,2]
[346482994,1735001447224,-568.24,0.00013698,2]
[346482995,1735001447233,-500.0,0.00013698,2]
[346482996,1735001447242,-1925.54,0.00013698,2]
[346482997,1735001447252,-1697.74,0.00013698,2]
[346482998,1735001447261,-500.56,0.00013698,2]
[346482999,1735001447270,-500.0,0.00013698,2]
[346483000,1735001447279,-500.0,0.00013698,2]
[346483001,1735001447289,-1848.08,0.00013698,2]
[346483002,1735001447299,-1929.62,0.00013698,2]
[346483003,1735001447308,-886.51,0.00013698,2]
[346483004,1735001447317,-500.0,0.00013698,2]
[346483005,1735001447327,-1410.06,0.00013698,2]
[346483006,1735001447336,-500.0,0.00013698,2]
[346483007,1735001447345,-1989.53,0.00013698,2]
[346483008,1735001447354,-500.0,0.00013698,2]
[346483009,1735001447363,-2524.46,0.00013698,2]
[346483010,1735001447373,-514.47,0.00013698,2]
[346483011,1735001447382,-1030.05,0.00013698,2]
[346483012,1735001447391,-4121.82,0.00013698,2]
[346483013,1735001447401,-765.98,0.00013698,2]
[346483014,1735001447410,-500.0,0.00013698,2]
[346483015,1735001447420,-1057.25,0.00013698,2]
[346483016,1735001447429,-3082.49,0.00013698,2]
[346483017,1735001447439,-2202.46,0.00013698,2]
[346483018,1735001447448,-644.49,0.00013698,2]
[346483019,1735001447458,-766.11,0.00013698,2]
[346483020,1735001447469,-1092.77,0.00013698,2]
[346483021,1735001447478,-2569.68,0.00013698,2]
[346483022,1735001447487,-1505.64673994,0.00013698,2]
[346483023,1735001447614,-393.29595266,0.00013698,2]
[346483024,1735001447625,-10.0773074,0.00013698,2]
[346483025,1735001447636,-500.0,0.00013698,2]
[346483026,1735001447645,-1254.01965165,0.00013698,2]
[346483027,1735001447673,-2425.56165631,0.00013698,2]
[346483028,1735001448699,-1963.849995,0.00013698,2]
[346483029,1735001448717,-6012.66869704,0.00013698,2]
[346483030,1735001448727,-698.71,0.00013698,2]
[346483031,1735001448735,-1466.02,0.00013698,2]
[346483032,1735001448745,-396.79097031,0.00013698,2]
[346483033,1735001448754,-500.0,0.00013698,2]
[346483034,1735001448763,-910.08,0.00013698,2]
[346483035,1735001448772,-357.695064,0.00013698,2]
[346483036,1735001448781,-440.86824288,0.00013698,2]
[346483037,1735001448797,-2278.44175712,0.00013698,2]
[346483038,1735001448806,-3712.23,0.00013698,2]
[346483039,1735001448816,-629.26,0.00013698,2]
[346483040,1735001448825,-454.90967899,0.00013698,2]
[346483041,1735001448895,-603.09032101,0.00013698,2]
[346483042,1735001448904,-500.0,0.00013698,2]
[346483043,1735001448913,-2249.96303326,0.00013698,2]
[346483044,1735001448925,-385.31135391,0.00013698,2]
[346483059,1735001536104,747.96,0.00010961,2]
[346483065,1735001644875,300.0,0.000122,2]
[346483070,1735001674116,270.0,0.000122,2]
[346483071,1735001676641,270.0,0.000122,3]
[346483103,1735002359938,153.34,0.00010137,2]
[346483107,1735002440938,710.56,0.00010574,2]
[346483129,1735002631725,-3719.39,0.00012488,2]
[346483130,1735002631735,-183.98,0.00012547,2]
[346483131,1735002631744,-628.87,0.00012555,2]
[346483132,1735002631754,-250.0,0.00012573,2]
[346483133,1735002631765,-1500.0,0.00012573,2]
[346483134,1735002631774,-250.0,0.00012599,2]
[346483135,1735002631785,-242.54,0.00012652,2]
[346483136,1735002631794,-119.10401262,0.00012723,2]
[346483137,1735002631817,-294.07692635,0.00012723,2]
[346483138,1735002631828,-586.81906103,0.00012723,2]
[346483139,1735002631840,-92.45776717,0.00012741,2]
[346483140,1735002631852,-118.66223283,0.00012741,2]
[346483141,1735002631861,-452.18,0.00012771,2]
[346483142,1735002631871,-59.27923597,0.00012822,2]
[346483143,1735002631882,-441.46626179,0.00012822,2]
[346483144,1735002631907,-944.88949915,0.00012822,2]
[346483145,1735002631971,-11842.33500309,0.00012822,2]
[346483146,1735002631980,-710.56,0.00012838,2]
[346483147,1735002631990,-5388.16096037,0.000129,2]
[346483148,1735002632002,-51.33253963,0.000129,2]
[346483149,1735002632014,-4490.7494,0.000129,2]
[346483150,1735002632024,-169.81,0.00012957,2]
[346483151,1735002632033,-303.98,0.00012973,2]
[346483152,1735002632043,-450.0,0.00013,2]
[346483153,1735002632052,-167.54,0.00013085,2]
[346483154,1735002632062,-680.647,0.000131,2]
[346483155,1735002632072,-436.35,0.00013151,2]
[346483156,1735002632081,-436.35,0.00013151,2]
[346483157,1735002632091,-436.35,0.00013151,2]
[346483158,1735002632100,-436.35,0.00013151,2]
[346483159,1735002632109,-2276.06441112,0.00013287,2]
[346483160,1735002632119,-2276.06441113,0.00013287,2]
[346483161,1735002632127,-428.97090145,0.00013442,2]
[346483162,1735002632136,-150.0,0.00013452,2]
[346483163,1735002632145,-300.0,0.00013452,2]
[346483164,1735002632155,-150.0,0.00013452,2]
[346483165,1735002632164,-436.35,0.00013452,2]
[346483166,1735002632173,-150.0,0.00013452,2]
[346483167,1735002632182,-150.0,0.00013452,2]
[346483168,1735002632191,-150.0,0.00013452,2]
[346483169,1735002632200,-150.0,0.00013452,2]
[346483170,1735002632209,-436.35,0.00013452,2]
[346483171,1735002632218,-977.37,0.00013452,2]
[346483172,1735002632227,-977.37,0.00013452,2]
[346483173,1735002632236,-150.0,0.00013452,2]
[346483174,1735002632245,-150.0,0.00013452,2]
[346483175,1735002632254,-150.0,0.00013452,2]
[346483176,1735002632264,-977.37,0.00013452,2]
[346483177,1735002632273,-436.35,0.00013452,2]
[346483178,1735002632281,-150.0,0.00013452,2]
[346483179,1735002632291,-150.0,0.00013452,2]
[346483180,1735002632303,-150.0,0.00013452,2]
[346483181,1735002632312,-150.0,0.00013452,2]
[346483182,1735002632323,-150.0,0.00013452,2]
[346483183,1735002632334,-977.37,0.00013452,2]
[346483184,1735002632343,-977.37,0.00013452,2]
[346483185,1735002632352,-637.85,0.00013452,2]
[346483186,1735002632362,-436.35,0.00013452,2]
[346483187,1735002632371,-2036.40429878,0.0001356,2]
[346483188,1735002632405,-963.59570122,0.0001356,2]
[346483189,1735002632414,-843.08836114,0.0001357,2]
[346483192,1735002637657,-6848.58967092,0.0001357,2]
[346483193,1735002637728,-1645.92196794,0.0001357,2]
[346483194,1735002637739,-5203.20865515,0.00013593,2]
[346483195,1735002637842,-387.93128088,0.00013593,2]
[346483196,1735002637953,-1943.46898318,0.00013593,2]
[346483197,1735002637965,-1500.4500045,0.00013593,2]
[346483225,1735002639824,-571.33144562,0.00013593,2]
[346483226,1735002639835,-432.19923863,0.00013593,2]
[346483227,1735002639852,-250.46048386,0.00013593,2]
[346483228,1735002639953,-500.0,0.00013593,2]
[346483229,1735002639964,-1000.0,0.00013593,2]
[346483230,1735002639975,-1003.30234195,0.00013593,2]
[346483231,1735002640020,-3599.88620116,0.00013593,2]
[346483242,1735002642630,-504.42976768,0.00013593,2]
[346483243,1735002642693,-516.34680005,0.00013593,2]
[346483244,1735002642704,-500.0,0.00013593,2]
[346483245,1735002642753,-11207.72550685,0.00013593,2]
[346483246,1735002642815,-262.47,0.00013593,2]
[346483247,1735002642998,-672.03992094,0.00013593,2]
[346483261,1735002645761,-436.35,0.00013151,2]
[346483262,1735002645771,-2568.94610927,0.00013593,2]
[346483263,1735002645780,-168.15389123,0.00013598,2]
[346483264,1735002645791,-502.17484992,0.00013598,2]
[346483265,1735002645800,-157.87833534,0.00013598,2]
[346483266,1735002645809,-147.00228474,0.00013598,2]
[346483267,1735002645832,-918.0931978,0.00013598,2]
[346483268,1735002645841,-1953.9954,0.00013598,2]
[346483269,1735002645850,-217.9114017,0.00013598,2]
[346483270,1735002645896,-342.48,0.00013598,2]
[346483271,1735002699979,5186.6755086,0.00026565,60]
[346483272,1735002756553,10000.0,0.00026565,60]
[346483273,1735002782573,10000.0,0.00026565,60]
[346483277,1735002815583,10000.0,0.00026565,60]
[346483278,1735002825572,4712.63,0.00026565,60]
[346483280,1735003070233,500.0,0.00012,2]
[346483281,1735003406133,680.15,0.00010832,2]
[346483300,1735003795905,184.39,0.00010137,2]
[346483302,1735003832052,-361.74,0.00012664,2]
[346483304,1735003832062,-133.33637835,0.00012698,2]
[346483305,1735003832072,-77.78362165,0.00012698,2]
[346483306,1735003832082,-250.0,0.00012752,2]
[346483307,1735003832091,-250.0,0.00012813,2]
[346483309,1735003832100,-43.46339133,0.00012887,2]
[346483312,1735003832212,-644.96660867,0.00012887,2]
[346483313,1735003832223,-151.77595856,0.00012918,2]
[346483314,1735003832235,-305.33042154,0.00012918,2]
[346483315,1735003832249,-522.80002,0.00012918,2]
[346483316,1735003832261,-20.0935999,0.00012918,2]
[346483317,1735003832271,-450.0,0.00013,2]
[346483318,1735003832280,-816.50969886,0.00013,2]
[346483319,1735003832291,-111.2947498,0.0001302,2]
[346483320,1735003832302,-559.1552502,0.0001302,2]
[346483321,1735003832312,-222.1747473,0.00013096,2]
[346483322,1735003832325,-457.9752527,0.00013096,2]
[346483323,1735003832335,-161.7360377,0.000133,2]
[346483324,1735003832347,-274.6139623,0.000133,2]
[346483325,1735003832357,-500.0,0.00013313,2]
[346483326,1735003832366,-147.6297027,0.00013324,2]
[346483327,1735003832415,-281.34119875,0.00013324,2]
[346483328,1735003832425,-300.0,0.00013451,2]
[346483329,1735003832434,-615.46731188,0.00013452,2]
[346483330,1735003832445,-361.90268812,0.00013452,2]
[346483331,1735003832455,-436.35,0.00013452,2]
[346483332,1735003832464,-994.8,0.00013452,2]
[346483333,1735003832473,-442.39,0.00013452,2]
[346483334,1735003832483,-436.35,0.000135,2]
[346483335,1735003832492,-500.0,0.00013598,2]
[346483336,1735003832502,-1340.67360169,0.00013598,2]
[346483337,1735003832512,-500.0,0.00013598,2]
[346483338,1735003832521,-3000.0,0.00013598,2]
[346483339,1735003832531,-2051.65848244,0.00013598,2]
[346483340,1735003832540,-89.932448,0.00013598,2]
[346483341,1735003832551,-750.17897989,0.00013598,2]
[346483342,1735003832563,-2853.76747211,0.00013598,2]
[346483343,1735003832573,-5000.0,0.00013598,2]
[346483344,1735003832582,-864.39529854,0.00013598,2]
[346483345,1735003832593,-460.74,0.00013598,2]
[346483382,1735003837905,-508.43470957,0.00013598,2]
[346483383,1735003837917,-465.401043,0.00013598,2]
[346483384,1735003838130,-735.15365519,0.00013598,2]
[346483385,1735003838141,-1944.0,0.00013598,2]
[346483386,1735003838152,-9852.2404937,0.00013598,2]
[346483387,1735003838161,-3599.88620116,0.00013598,2]
[346483388,1735003838171,-300.0,0.000136,3]
[346483389,1735003838180,-300.0,0.000136,2]
[346483390,1735003838189,-300.0,0.000136,3]
[346483391,1735003838198,-270.0,0.000136,3]
[346483392,1735003838207,-278.71,0.000136,2]
[346483393,1735003838217,-224.33,0.000136,2]
[346483394,1735003838227,-436.35,0.000136,2]
[346483395,1735003838237,-436.35,0.000136,2]
[346483396,1735003838249,-871.02,0.000136,2]
[346483397,1735003838258,-436.35,0.000136,2]
[346483398,1735003838267,-4036.571,0.00013632,2]
[346483399,1735003838276,-240.813,0.00013632,2]
[346483400,1735003838286,-18017.37930512,0.00013647,2]
[346483401,1735003838337,-8956.1,0.00013647,2]
[346483402,1735003838348,-361.37125032,0.00013647,2]
[346483403,1735003838359,-2665.14944456,0.00013647,2]
[346483404,1735003838368,-200.0,0.0001368,2]
[346483405,1735003838377,-195.11791949,0.00013688,2]
[346483406,1735003838386,-213.06449223,0.00013696,2]
[346483407,1735003838396,-224.28314732,0.00013697,2]
[346483420,1735003839928,-711.4300572,0.00013598,2]
[346483421,1735003839937,-6992.27472951,0.00013647,2]
[346483422,1735003839946,-84276.43366761,0.00013697,2]
[346483423,1735003840094,-673.28091224,0.00013697,2]
[346483424,1735003840106,-262.520001,0.00013697,2]
[346483425,1735003840117,-1917.68892635,0.00013697,2]
[346483426,1735003840128,-3399.23013691,0.00013697,2]
[346483427,1735003840136,-500.0,0.00013698,2]
[346483428,1735003840146,-500.0,0.00013698,2]
[346483429,1735003840154,-155.367327,0.00013698,2]
[346483430,1735003840163,-500.0,0.00013698,2]
[346483431,1735003840172,-953.67745609,0.00013698,2]
[346483432,1735003840184,-467.81403291,0.00013698,2]
[346483433,1735003840193,-32.18596709,0.00013698,2]
[346483434,1735003840280,-467.81403291,0.00013698,2]
[346483435,1735003840290,-1502.354436,0.00013698,2]
[346483436,1735003840299,-500.0,0.00013698,2]
[346483437,1735003840309,-533.80329137,0.00013698,2]
[346483438,1735003840318,-551.27408475,0.00013698,2]
[346483439,1735003840327,-486.25491634,0.00013698,2]
[346483440,1735003840339,-13.74508366,0.00013698,2]
[346483441,1735003840348,-500.0,0.00013698,2]
[346483442,1735003840357,-340.29972695,0.00013698,2]
[346483443,1735003840368,-159.70027305,0.00013698,2]
[346483444,1735003840377,-339.93958206,0.00013698,2]
[346483445,1735003840388,-37.41041681,0.00013698,2]
[346483446,1735003840397,-530.0508009,0.00013698,2]
[346483447,1735003840407,-500.0,0.00013698,2]
[346483448,1735003840416,-500.0,0.00013698,2]
[346483450,1735003840425,-500.0,0.00013698,2]
[346483452,1735003840435,-300.0,0.00013698,2]
[346483454,1735003840445,-500.0,0.00013698,2]
[346483456,1735003840455,-303.54351827,0.00013698,2]
[346483458,1735003840466,-196.45648173,0.00013698,2]
[346483460,1735003840475,-500.0,0.00013698,2]
[346483462,1735003840485,-500.0,0.00013698,2]
[346483464,1735003840495,-500.0,0.00013698,2]
[346483466,1735003840504,-500.0,0.00013698,2]
[346483467,1735003840513,-500.0,0.00013698,2]
[346483469,1735003840522,-135.84491178,0.00013698,2]
[346483472,1735003840534,-364.15508822,0.00013698,2]
[346483473,1735003840543,-500.0,0.00013698,2]
[346483475,1735003840552,-408.42291168,0.00013698,2]
[346483478,1735003840563,-91.57708832,0.00013698,2]
[346483479,1735003840573,-500.0,0.00013698,2]